bitfinex-derivatives/quotes_BTCF0:USTF0_20250427
["timestamp","ask_amount","ask_price","bid_price","bid_amount"]
[1745750169160,1.20048532,94028.0,94027.0,0.26265208]
[1745750169355,1.56128532,94028.0,94027.0,0.26265208]
[1745750169551,1.22332564,94028.0,94027.0,0.27049863]
[1745750169858,1.22432564,94028.0,94027.0,0.27049863]
[1745750170165,1.10432564,94028.0,94027.0,0.27049863]
[1745750170555,0.7226,94028.0,94027.0,0.37685063]
[1745750170762,0.4179,94072.0,94028.0,0.53172]
[1745750170959,0.1448,94066.0,94065.0,0.2125699]
[1745750171161,0.1448,94066.0,94065.0,0.3325699]
[1745750172055,0.1518,94066.0,94065.0,0.3335699]
[1745750172260,0.2718,94066.0,94065.0,0.2135699]
[1745750172964,0.2236,94066.0,94065.0,0.2135699]
[1745750173161,0.1086,94066.0,94065.0,0.3335699]
[1745750175663,0.1086,94066.0,94065.0,0.6943699]
[1745750177065,0.1086,94066.0,94065.0,0.5743699]
[1745750178160,0.1086,94066.0,94065.0,0.6943699]
[1745750180261,0.1086,94066.0,94065.0,0.5743699]
[1745750181491,0.1086,94066.0,94065.0,0.2135699]
[1745750181681,0.1086,94066.0,94065.0,0.5743699]
[1745750186274,0.48932564,94066.0,94065.0,0.5743699]
[1745750187169,0.60932564,94066.0,94065.0,0.5743699]
[1745750190269,0.48932564,94066.0,94065.0,0.5743699]
[1745750191872,0.48932564,94066.0,94065.0,0.2135699]
[1745750192073,0.48932564,94066.0,94065.0,0.5743699]
[1745750193360,0.48932564,94066.0,94065.0,0.6388499]
[1745750195775,0.48932564,94066.0,94065.0,0.2780499]
[1745750195966,0.48932564,94066.0,94065.0,0.6388499]
[1745750199861,0.48932564,94066.0,94065.0,0.2780499]
[1745750200171,0.48932564,94066.0,94065.0,0.6388499]
[1745750208867,0.0602,94066.0,94065.0,0.6388499]
[1745750209072,0.0602,94066.0,94065.0,0.7588499]
[1745750209573,0.0602,94066.0,94065.0,0.8437499]
[1745750214286,0.1053,94066.0,94065.0,0.8437499]
[1745750215174,0.1053,94066.0,94065.0,0.7237499]
[1745750217087,0.1053,94066.0,94065.0,0.8437499]
[1745750217386,0.1053,94066.0,94065.0,1.2045499]
[1745750218076,0.1053,94066.0,94065.0,1.0845499]
[1745750219089,0.1053,94066.0,94065.0,1.2045499]
[1745750220089,0.1053,94066.0,94065.0,1.0845499]
[1745750220674,0.1053,94066.0,94065.0,1.0423499]
[1745750222183,0.1053,94066.0,94065.0,1.1623499]
[1745750223385,0.1053,94066.0,94065.0,1.0423499]
[1745750224185,0.1053,94066.0,94065.0,1.1623499]
[1745750226181,0.1053,94066.0,94065.0,1.0423499]
[1745750227389,0.1053,94066.0,94065.0,1.1623499]
[1745750228088,0.1053,94066.0,94065.0,1.0423499]
[1745750229294,0.1053,94066.0,94065.0,1.1623499]
[1745750230580,0.1053,94066.0,94065.0,1.1196499]
[1745750230798,0.82398532,94066.0,94065.0,1.1196499]
[1745750230995,0.82398532,94066.0,94065.0,1.0551699]
[1745750231190,0.94398532,94066.0,94065.0,0.9994499]
[1745750232195,0.82398532,94066.0,94065.0,0.9994499]
[1745750240391,0.48602564,94066.0,94065.0,0.9994499]
[1745750241711,0.48402564,94066.0,94065.0,0.9994499]
[1745750241923,0.48402564,94066.0,94065.0,0.9984499]
[1745750242121,0.48102564,94066.0,94065.0,0.9994499]
[1745750244800,0.48102564,94066.0,94065.0,0.6386499]
[1745750245991,0.48102564,94066.0,94065.0,0.6386099]
[1745750246197,0.60102564,94066.0,94065.0,0.6386099]
[1745750247299,0.48102564,94066.0,94065.0,0.6386099]
[1745750249397,0.60102564,94066.0,94065.0,0.6386099]
[1745750251197,0.48102564,94066.0,94065.0,0.6386099]
[1745750253201,0.60102564,94066.0,94065.0,0.6386099]
[1745750253401,0.60102564,94066.0,94065.0,0.5743699]
[1745750253698,0.60102564,94066.0,94065.0,0.6386099]
[1745750255294,0.48102564,94066.0,94065.0,0.6386099]
[1745750256995,0.1003,94066.0,94065.0,0.6386099]
[1745750257200,0.48102564,94066.0,94065.0,0.6386099]
[1745750262209,0.60102564,94066.0,94065.0,0.6386099]
[1745750263214,0.48102564,94066.0,94065.0,0.6386099]
[1745750275636,0.48102564,94066.0,94065.0,0.5743699]
[1745750275934,0.48102564,94066.0,94065.0,0.6386099]
[1745750277434,0.48102564,94066.0,94065.0,0.2778099]
[1745750277633,0.48102564,94066.0,94065.0,0.6386099]
[1745750279030,0.48102564,94066.0,94065.0,0.7586099]
[1745750280244,0.48102564,94066.0,94065.0,0.6386099]
[1745750285542,0.48102564,94066.0,94065.0,0.2778099]
[1745750285741,0.48102564,94066.0,94065.0,0.6386099]
[1745750286533,0.48102564,94066.0,94065.0,0.2778099]
[1745750286734,0.48102564,94066.0,94065.0,0.6386099]
[1745750289342,0.48102564,94066.0,94065.0,0.2778099]
[1745750289549,0.48102564,94066.0,94065.0,0.6386099]
[1745750295449,0.48102564,94066.0,94065.0,0.2778099]
[1745750295650,0.48102564,94066.0,94065.0,0.6386099]
[1745750297740,0.81898532,94066.0,94062.0,0.06424]
[1745750297951,0.38072564,94063.0,94062.0,0.2125789]
[1745750298148,0.50072564,94063.0,94062.0,0.2125789]
[1745750298345,0.83868532,94063.0,94062.0,0.2125789]
[1745750298752,0.88818532,94063.0,94062.0,0.2125789]
[1745750298953,0.88818532,94063.0,94062.0,0.2135789]
[1745750299757,0.89418532,94063.0,94062.0,0.2145789]
[1745750301052,0.89418532,94063.0,94062.0,0.2135789]
[1745750301357,0.55622564,94063.0,94062.0,0.2145789]
[1745750302158,1.10676192,94063.0,94062.0,0.002]
[1745750302458,1.10676192,94063.0,94062.0,0.001]
[1745750302858,1.15946192,94063.0,94062.0,0.001]
[1745750303159,0.94688532,94063.0,94062.0,0.2145789]
[1745750304147,0.94688532,94063.0,94062.0,0.002]
[1745750304650,0.2126037,94051.0,94050.0,0.06424]
[1745750304948,0.8882946,94051.0,94047.0,0.2126115]
[1745750305148,0.1067,94050.0,94044.0,0.1173947]
[1745750305353,0.1591,94050.0,94049.0,0.2126083]
[1745750305555,0.49705968,94050.0,94049.0,0.2126083]
[1745750305753,0.59932508,94050.0,94049.0,0.2126083]
[1745750306156,0.71932508,94050.0,94049.0,0.2126083]
[1745750306456,0.71932508,94050.0,94044.0,0.1173945]
[1745750306652,0.1022654,94045.0,94044.0,0.1173945]
[1745750306855,0.1022654,94045.0,94044.0,0.2768596]
[1745750307050,0.44022508,94045.0,94044.0,0.2768596]
[1745750307457,0.65284238,94045.0,94044.0,0.06424]
[1745750307657,0.2126307,94040.0,94033.0,0.06424]
[1745750307859,0.5177,94039.0,94033.0,0.06424]
[1745750308153,0.1022654,94034.0,94027.0,0.05253771]
[1745750308355,0.1022654,94028.0,94027.0,0.265822]
[1745750309157,0.1022654,94028.0,94027.0,0.29819467]
[1745750310649,0.1052654,94028.0,94027.0,0.29919467]
[1745750310849,0.1062654,94028.0,94027.0,0.29919467]
[1745750312550,0.65688088,94028.0,94027.0,0.04142074]
[1745750312749,0.44422508,94028.0,94027.0,0.25407874]
[1745750312952,0.60872508,94028.0,94027.0,0.04142074]
[1745750313950,0.2707654,94028.0,94027.0,0.04142074]
[1745750314756,0.4834212,94028.0,94027.0,0.04142074]
[1745750315061,0.2707654,94028.0,94027.0,0.04142074]
[1745750315261,0.3907654,94028.0,94027.0,0.25407874]
[1745750316163,0.2707654,94028.0,94027.0,0.25407874]
[1745750317758,0.4834212,94028.0,94027.0,0.04142074]
[1745750318059,0.2707654,94028.0,94027.0,0.04142074]
[1745750318260,0.3907654,94028.0,94027.0,0.04142074]
[1745750319052,0.3907654,94028.0,94027.0,0.25407874]
[1745750319254,0.2707654,94028.0,94027.0,0.04142074]
[1745750321259,0.2707654,94028.0,94027.0,0.25407874]
[1745750332457,0.4834212,94028.0,94027.0,0.04142074]
[1745750333960,0.2707654,94028.0,94027.0,0.25407874]
[1745750340372,0.27056347,94028.0,94027.0,0.25407874]
[1745750341169,0.27056347,94028.0,94027.0,0.37407874]
[1745750341373,0.27056347,94028.0,94027.0,0.42437874]
[1745750342769,0.27056347,94028.0,94027.0,0.37407874]
[1745750345873,0.16166347,94028.0,94027.0,0.37407874]
[1745750346171,0.16166347,94028.0,94027.0,0.42897874]
[1745750351277,0.16166347,94028.0,94027.0,0.37407874]
[1745750351478,0.16166347,94028.0,94027.0,0.43835874]
[1745750365185,0.21636347,94028.0,94027.0,0.43835874]
[1745750367182,0.21636347,94028.0,94027.0,0.31835874]
[1745750369085,0.21636347,94028.0,94027.0,0.43835874]
[1745750375294,0.21636347,94028.0,94027.0,0.31835874]
[1745750376195,0.21636347,94028.0,94027.0,0.43835874]
[1745750377098,0.21636347,94028.0,94027.0,0.31835874]
[1745750378397,0.21636347,94028.0,94027.0,0.43835874]
[1745750382294,0.21636347,94028.0,94027.0,0.31835874]
[1745750383100,0.21636347,94028.0,94027.0,0.43835874]
[1745750384100,0.21636347,94028.0,94027.0,0.31835874]
[1745750386696,0.42901927,94028.0,94027.0,0.04142074]
[1745750390097,0.54901927,94028.0,94027.0,0.04142074]
[1745750391296,0.42901927,94028.0,94027.0,0.04142074]
[1745750392098,0.54901927,94028.0,94027.0,0.04142074]
[1745750392404,0.88697895,94028.0,94027.0,0.00804807]
[1745750392601,0.212658,94027.0,94026.0,0.06428]
[1745750392902,0.2126713,94022.0,94019.0,0.2126759]
[1745750393105,0.2126829,94016.0,94015.0,0.06428]
[1745750393495,0.3149483,94016.0,94015.0,0.06428]
[1745750393898,0.4185483,94016.0,94015.0,0.2769652]
[1745750394394,0.2068654,94016.0,94015.0,0.2799652]
[1745750394600,0.2068654,94016.0,94015.0,0.30833333]
[1745750395001,0.2078654,94016.0,94015.0,0.30933333]
[1745750395596,0.2078654,94016.0,94015.0,0.31741287]
[1745750397005,0.2078654,94016.0,94015.0,0.10472767]
[1745750397208,0.2078654,94016.0,94015.0,0.31741287]
[1745750397408,0.54582508,94016.0,94015.0,0.25313287]
[1745750397603,0.212701,94008.0,94007.0,0.00531872]
[1745750397808,0.6757664,94008.0,94007.0,0.00531872]
[1745750398002,0.80102508,94008.0,94007.0,0.25359841]
[1745750398202,0.4630654,94008.0,94007.0,0.21802202]
[1745750399208,0.4630654,94008.0,94007.0,0.33802202]
[1745750399718,0.4640654,94008.0,94007.0,0.33802202]
[1745750399905,0.4680654,94008.0,94007.0,0.33802202]
[1745750400106,0.4680654,94008.0,94007.0,0.36562949]
[1745750401702,0.4680654,94008.0,94007.0,0.37350633]
[1745750401911,0.005,94008.0,94007.0,0.43778633]
[1745750402217,0.005,94008.0,94007.0,0.54048633]
[1745750403106,0.005,94008.0,94007.0,0.64686233]
[1745750407519,0.0505,94015.0,94014.0,0.2126874]
[1745750407717,0.0505,94015.0,94014.0,0.5734874]
[1745750408219,0.0505,94015.0,94014.0,0.6934874]
[1745750408416,0.0505,94015.0,94014.0,0.7981874]
[1745750409309,0.0535,94015.0,94014.0,0.7981874]
[1745750409922,0.0575,94015.0,94014.0,0.7991874]
[1745750410412,0.0515,94015.0,94014.0,0.7991874]
[1745750410609,0.0535,94015.0,94014.0,0.8001874]
[1745750411013,0.0515,94015.0,94014.0,0.7991874]
[1745750411215,0.1095,94026.0,94025.0,0.2126625]
[1745750411419,0.3608,94047.0,94034.0,0.0531604]
[1745750411626,0.0531,94041.0,94040.0,0.2126286]
[1745750412137,0.49332508,94041.0,94040.0,0.3326286]
[1745750413220,0.49332508,94041.0,94040.0,0.3336286]
[1745750413424,0.49932508,94041.0,94040.0,0.3336286]
[1745750413626,0.50432508,94041.0,94040.0,0.3336286]
[1745750414416,0.86512508,94041.0,94040.0,0.3336286]
[1745750415323,0.1663654,94041.0,94040.0,0.3979086]
[1745750416116,0.1593654,94041.0,94040.0,0.5069086]
[1745750416314,0.1653654,94041.0,94040.0,0.5079086]
[1745750416719,0.1593654,94041.0,94040.0,0.5069086]
[1745750416921,0.1643654,94041.0,94040.0,0.5079086]
[1745750423530,0.1643654,94041.0,94040.0,0.4526086]
[1745750423724,0.1643654,94041.0,94040.0,0.3989086]
[1745750431931,0.0621,94041.0,94040.0,0.3989086]
[1745750440239,0.0621,94041.0,94040.0,0.4425086]
[1745750443128,0.1643654,94041.0,94040.0,0.4425086]
[1745750444540,0.0621,94041.0,94040.0,0.4425086]
[1745750445632,0.33470778,94063.0,94040.0,0.336216]
[1745750445828,0.67266746,94063.0,94062.0,0.2125789]
[1745750446028,0.77493286,94063.0,94062.0,0.2125789]
[1745750446337,0.77493286,94063.0,94062.0,0.3325789]
[1745750447026,0.78293286,94063.0,94062.0,0.3325789]
[1745750447232,0.78293286,94063.0,94062.0,0.2125789]
[1745750447426,0.79293286,94063.0,94062.0,0.2135789]
[1745750447826,0.79293286,94063.0,94062.0,0.2145789]
[1745750448238,0.45822508,94063.0,94062.0,0.2145789]
[1745750448626,0.45822508,94063.0,94062.0,0.26517446]
[1745750449337,0.54042508,94063.0,94062.0,0.26517446]
[1745750449740,0.54042508,94063.0,94062.0,0.27313252]
[1745750455742,0.2024654,94063.0,94062.0,0.27313252]
[1745750458237,0.3224654,94063.0,94062.0,0.27313252]
[1745750460244,0.2024654,94063.0,94062.0,0.27313252]
[1745750461746,0.54042508,94063.0,94062.0,0.06055362]
[1745750462042,0.75300168,94063.0,94062.0,0.06055362]
[1745750462245,0.75300168,94063.0,94062.0,0.27313252]
[1745750464139,0.87300168,94063.0,94062.0,0.27313252]
[1745750468349,0.535042,94063.0,94062.0,0.27313252]
[1745750469153,0.415042,94063.0,94062.0,0.27313252]
[1745750470246,0.535042,94063.0,94062.0,0.27313252]
[1745750473146,0.415042,94063.0,94062.0,0.27313252]
[1745750475145,0.535042,94063.0,94062.0,0.27313252]
[1745750476053,0.87300168,94063.0,94062.0,0.05259556]
[1745750476636,0.87300168,94063.0,94062.0,0.002]
[1745750477948,1.23380168,94063.0,94062.0,0.002]
[1745750478153,1.23380168,94063.0,94062.0,0.04404704]
[1745750480150,1.23380168,94063.0,94062.0,0.002]
[1745750487246,0.775842,94063.0,94062.0,0.002]
[1745750488054,0.895842,94063.0,94062.0,0.002]
[1745750488850,1.23380168,94063.0,94062.0,0.002]
[1745750491252,1.11380168,94063.0,94062.0,0.002]
[1745750492255,1.23380168,94063.0,94062.0,0.002]
[1745750492649,0.2125857,94059.0,94058.0,0.0438]
[1745750492849,0.3148511,94059.0,94058.0,0.0438]
[1745750493255,0.3148511,94059.0,94058.0,0.0368]
[1745750493458,0.3984511,94059.0,94058.0,0.0368]
[1745750493851,0.3984511,94059.0,94058.0,0.0378]
[1745750494050,0.4124511,94059.0,94058.0,0.0388]
[1745750494747,0.4124511,94059.0,94058.0,0.04674178]
[1745750494944,0.4124511,94059.0,94058.0,0.08961396]
[1745750495158,0.4124511,94059.0,94058.0,0.0388]
[1745750495859,0.4124511,94059.0,94058.0,0.08105586]
[1745750496062,0.4124511,94059.0,94058.0,0.0388]
[1745750497260,0.1162654,94059.0,94058.0,0.08939241]
[1745750497460,0.1162654,94059.0,94058.0,0.30198031]
[1745750498062,0.014,94059.0,94058.0,0.30198031]
[1745750498263,0.014,94059.0,94058.0,0.42198031]
[1745750498467,0.014,94059.0,94058.0,0.46618031]
[1745750499167,0.014,94059.0,94058.0,0.34618031]
[1745750503154,0.014,94059.0,94058.0,0.46618031]
[1745750503568,0.003,94059.0,94058.0,0.46518031]
[1745750503865,0.007,94059.0,94058.0,0.46618031]
[1745750517263,0.0474,94059.0,94058.0,0.46618031]
[1745750521175,0.0474,94059.0,94058.0,0.42198031]
[1745750521475,0.0907,94059.0,94058.0,0.42198031]
[1745750522377,0.0907,94059.0,94058.0,0.30198031]
[1745750528568,0.0872541,94059.0,94058.0,0.30198031]
[1745750529175,0.0872541,94059.0,94058.0,0.42198031]
[1745750532183,0.0872541,94059.0,94058.0,0.30198031]
[1745750533169,0.0872541,94059.0,94058.0,0.42198031]
[1745750534081,0.0872541,94059.0,94058.0,0.30198031]
[1745750537182,0.0872541,94059.0,94058.0,0.42198031]
[1745750537881,0.0872541,94059.0,94058.0,0.48622031]
[1745750539084,0.1895195,94059.0,94058.0,0.48622031]
[1745750541184,0.1895195,94059.0,94058.0,0.36622031]
[1745750552191,0.1895195,94059.0,94058.0,0.48622031]
[1745750553193,0.1895195,94059.0,94058.0,0.36622031]
[1745750554088,0.1895195,94059.0,94058.0,0.48622031]
[1745750555295,0.1895195,94059.0,94058.0,0.36622031]
[1745750582118,0.1895195,94059.0,94058.0,0.48622031]
[1745750585122,0.1895195,94059.0,94058.0,0.36622031]
[1745750587225,0.1895195,94059.0,94058.0,0.48622031]
[1745750589327,0.1895195,94059.0,94058.0,0.36622031]
[1745750599234,0.1895195,94059.0,94058.0,0.48622031]
[1745750600133,0.1895195,94059.0,94058.0,0.36622031]
[1745750603234,0.1895195,94059.0,94058.0,0.48622031]
[1745750604227,0.1895195,94059.0,94058.0,0.36622031]
[1745750605134,0.1895195,94059.0,94058.0,0.48622031]
[1745750606139,0.1895195,94059.0,94058.0,0.36622031]
[1745750607140,0.1895195,94059.0,94058.0,0.48622031]
[1745750608141,0.1895195,94059.0,94058.0,0.36622031]
[1745750609143,0.1895195,94059.0,94058.0,0.48622031]
[1745750611247,0.1895195,94059.0,94058.0,0.36622031]
[1745750616953,0.0872541,94059.0,94058.0,0.36622031]
[1745750617155,0.1895195,94059.0,94058.0,0.36622031]
[1745750634263,0.1895195,94059.0,94058.0,0.30198031]
[1745750634562,0.1895195,94059.0,94058.0,0.32938031]
[1745750659475,0.52747918,94059.0,94058.0,0.32938031]
[1745750659975,0.52747918,94059.0,94058.0,0.26518031]
[1745750660180,0.52747918,94059.0,94058.0,0.32938031]
[1745750669788,0.1895195,94059.0,94058.0,0.32938031]
[1745750670888,0.1895195,94059.0,94058.0,0.37018031]
[1745750674190,0.1895195,94059.0,94058.0,0.49018031]
[1745750675290,0.1895195,94059.0,94058.0,0.37018031]
[1745750676081,0.1895195,94059.0,94058.0,0.49018031]
[1745750677196,0.1895195,94059.0,94058.0,0.37018031]
[1745750679192,0.1895195,94059.0,94058.0,0.49018031]
[1745750679893,0.1462195,94059.0,94058.0,0.49018031]
[1745750680196,0.0052,94068.0,94067.0,0.2125676]
[1745750680786,0.0052,94068.0,94067.0,0.2918676]
[1745750681294,0.0092,94068.0,94067.0,0.4128676]
[1745750681495,0.0152,94068.0,94067.0,0.4138676]
[1745750684093,0.0794,94078.0,94077.0,0.212545]
[1745750684293,0.0794,94078.0,94077.0,0.276745]
[1745750685001,0.0794,94078.0,94077.0,0.357945]
[1745750685203,0.0794,94078.0,94077.0,0.49384528]
[1745750685595,0.0794,94078.0,94077.0,0.49384166]
[1745750686699,0.0824,94078.0,94077.0,0.49384166]
[1745750687106,0.0854,94078.0,94077.0,0.49384166]
[1745750687605,0.0854,94078.0,94077.0,0.49369516]
[1745750690000,0.0469,94078.0,94077.0,0.49369516]
[1745750691498,0.0469,94078.0,94077.0,0.49380551]
[1745750693394,0.0868,94078.0,94077.0,0.49380551]
[1745750693794,0.0868,94078.0,94077.0,0.45420551]
[1745750694198,0.0868,94078.0,94077.0,0.33420551]
[1745750695005,0.1263,94078.0,94077.0,0.33420551]
[1745750695199,0.1263,94078.0,94077.0,0.33427362]
[1745750697203,0.1263,94078.0,94077.0,0.33416674]
[1745750699107,0.1263,94078.0,94077.0,0.318345]
[1745750700107,0.1213,94078.0,94077.0,0.318345]
[1745750700303,0.1223,94078.0,94077.0,0.318345]
[1745750700709,0.1223,94078.0,94077.0,0.276705]
[1745750714113,0.1223,94078.0,94077.0,0.29241335]
[1745750715111,0.2423,94078.0,94077.0,0.29241335]
[1745750716210,0.2423,94078.0,94077.0,0.276705]
[1745750718104,0.2523,94078.0,94077.0,0.276705]
[1745750720212,0.1323,94078.0,94077.0,0.276705]
[1745750721212,0.2523,94078.0,94077.0,0.276705]
[1745750722208,0.1323,94078.0,94077.0,0.276705]
[1745750723117,0.2523,94078.0,94077.0,0.276705]
[1745750726123,0.1323,94078.0,94077.0,0.276705]
[1745750727124,0.2523,94078.0,94077.0,0.276705]
[1745750729023,0.2523,94078.0,94077.0,0.212545]
[1745750729224,0.1323,94078.0,94077.0,0.276705]
[1745750732916,0.1323,94078.0,94077.0,0.312705]
[1745750733119,0.1323,94078.0,94077.0,0.349505]
[1745750735229,0.0928,94078.0,94077.0,0.349505]
[1745750736924,0.0928,94078.0,94077.0,0.312705]
[1745750762147,0.012,94078.0,94077.0,0.312705]
[1745750762324,0.07019199,94084.0,94083.0,0.2125314]
[1745750762525,0.28067813,94099.0,94098.0,0.2124976]
[1745750762736,0.28067813,94099.0,94098.0,0.2766176]
[1745750763444,0.5732664,94112.0,94101.0,0.0531222]
[1745750763624,0.69875968,94112.0,94098.0,0.06412]
[1745750763936,0.0342,94111.0,94097.0,0.0905248]
[1745750764136,0.2466694,94111.0,94092.0,0.0531273]
[1745750764328,0.2124706,94110.0,94105.0,0.2124805]
[1745750764528,0.2124706,94110.0,94106.0,0.2124792]
[1745750764738,0.55043028,94110.0,94106.0,0.2124792]
[1745750765136,0.67043028,94110.0,94106.0,0.2124792]
[1745750765638,0.67043028,94110.0,94107.0,0.2124771]
[1745750766135,0.45795968,94110.0,94108.0,0.2124748]
[1745750766341,0.45795968,94110.0,94109.0,0.2124727]
[1745750766640,0.46195968,94110.0,94109.0,0.24473844]
[1745750767023,0.46395968,94110.0,94109.0,0.24473844]
[1745750767224,0.82875968,94110.0,94109.0,0.24473844]
[1745750767643,0.82475968,94110.0,94109.0,0.24473844]
[1745750767834,0.89835968,94110.0,94109.0,0.24573844]
[1745750768035,0.5604,94110.0,94109.0,0.24573844]
[1745750768235,0.4404,94110.0,94109.0,0.24573844]
[1745750768741,0.3708,94110.0,94109.0,0.24573844]
[1745750768941,0.3708,94110.0,94109.0,0.30985844]
[1745750769244,0.4404,94110.0,94109.0,0.36573844]
[1745750769436,0.4404,94110.0,94109.0,0.42985844]
[1745750769631,0.43142738,94110.0,94109.0,0.44589071]
[1745750769831,0.43042738,94110.0,94109.0,0.44589071]
[1745750770343,0.43042738,94110.0,94109.0,0.32589071]
[1745750770344,0.0776,94110.0,94109.0,0.32589071]
[1745750770536,0.0776,94110.0,94109.0,0.30985844]
[1745750771440,0.0776,94110.0,94109.0,0.24573844]
[1745750771639,0.0776,94110.0,94109.0,0.30985844]
[1745750772444,0.0776,94110.0,94109.0,0.32586222]
[1745750774436,0.0776,94110.0,94109.0,0.30985844]
[1745750776544,0.0776,94110.0,94109.0,0.32586047]
[1745750777243,0.1976,94110.0,94109.0,0.32586047]
[1745750777444,0.1976,94110.0,94109.0,0.36206047]
[1745750778237,0.1976,94110.0,94109.0,0.34605844]
[1745750781146,0.0776,94110.0,94109.0,0.34605844]
[1745750782150,0.1976,94110.0,94109.0,0.34605844]
[1745750783249,0.0776,94110.0,94109.0,0.34605844]
[1745750784153,0.1976,94110.0,94109.0,0.34605844]
[1745750808866,0.1976,94110.0,94109.0,0.13358574]
[1745750809065,0.53555968,94110.0,94109.0,0.09738574]
[1745750809260,0.74803018,94110.0,94109.0,0.03326574]
[1745750809961,1.10883018,94110.0,94109.0,0.03326574]
[1745750810162,1.46509018,94110.0,94109.0,0.03326574]
[1745750810859,1.21509018,94110.0,94109.0,0.03326574]
[1745750812576,0.85429018,94110.0,94109.0,0.03326574]
[1745750815759,0.85429018,94110.0,94109.0,0.24573844]
[1745750816070,0.85429018,94110.0,94109.0,0.03326574]
[1745750827075,0.74803018,94110.0,94109.0,0.03326574]
[1745750832769,0.4100705,94110.0,94109.0,0.03326574]
[1745750837366,0.4100705,94110.0,94109.0,0.06346574]
[1745750842382,0.4100705,94110.0,94109.0,0.09566574]
[1745750842773,0.4100705,94110.0,94109.0,0.30813844]
[1745750843085,0.4100705,94110.0,94109.0,0.09566574]
[1745750843875,0.4100705,94110.0,94109.0,0.06346574]
[1745750844272,0.4100705,94110.0,94109.0,0.0312]
[1745750844472,0.4100705,94110.0,94109.0,0.001]
[1745750847277,0.7708705,94110.0,94109.0,0.001]
[1745750851188,0.2124772,94107.0,94106.0,0.02071958]
[1745750851486,0.2124795,94106.0,94105.0,0.2124813]
[1745750851789,0.6034795,94106.0,94105.0,0.2124813]
[1745750851988,0.2124863,94104.0,94103.0,0.2124856]
[1745750852180,0.2124863,94104.0,94103.0,0.2054856]
[1745750852382,0.3090863,94104.0,94103.0,0.2278856]
[1745750852783,0.3090863,94104.0,94103.0,0.25253152]
[1745750852985,0.3090863,94104.0,94103.0,0.05604592]
[1745750853492,0.3140863,94104.0,94103.0,0.05704592]
[1745750854188,0.3160863,94104.0,94103.0,0.05704592]
[1745750854885,0.6768863,94104.0,94103.0,0.05704592]
[1745750857094,0.7968863,94104.0,94103.0,0.05704592]
[1745750857397,0.4360863,94104.0,94103.0,0.05704592]
[1745750857595,0.4360863,94104.0,94103.0,0.02564592]
[1745750859205,0.3160863,94104.0,94103.0,0.02564592]
[1745750860203,0.0531254,94097.0,94090.0,0.00159399]
[1745750860402,0.2125111,94092.0,94091.0,0.0329]
[1745750860791,0.2426111,94092.0,94091.0,0.0329]
[1745750860995,0.2734111,94092.0,94091.0,0.0329]
[1745750861205,0.3934111,94092.0,94091.0,0.0329]
[1745750861591,0.3934111,94092.0,94091.0,0.04088894]
[1745750861799,0.3934111,94092.0,94091.0,0.04188894]
[1745750862308,0.3934111,94092.0,94091.0,0.0339]
[1745750862507,0.3934111,94092.0,94091.0,0.001]
[1745750863199,0.3964111,94092.0,94091.0,0.001]
[1745750864398,0.1839,94092.0,94090.0,0.00159399]
[1745750864704,0.2125134,94091.0,94090.0,0.03259399]
[1745750865104,0.3941134,94091.0,94090.0,0.03259399]
[1745750865502,0.3941134,94091.0,94090.0,0.04038401]
[1745750866000,0.3941134,94091.0,94090.0,0.04138401]
[1745750866001,0.4001134,94091.0,94090.0,0.04138401]
[1745750866403,0.4001134,94091.0,94090.0,0.03359399]
[1745750867506,0.7639134,94091.0,94090.0,0.03359399]
[1745750877107,0.4031134,94091.0,94090.0,0.03359399]
[1745750877301,0.7639134,94091.0,94090.0,0.03359399]
[1745750878412,0.4031134,94091.0,94090.0,0.03359399]
[1745750878613,0.7639134,94091.0,94090.0,0.03359399]
[1745750879105,0.4031134,94091.0,94090.0,0.03359399]
[1745750879307,0.7639134,94091.0,94090.0,0.03359399]
[1745750880117,0.4031134,94091.0,94090.0,0.03359399]
[1745750880312,0.7639134,94091.0,94090.0,0.03359399]
[1745750881919,1.10187308,94091.0,94090.0,0.03359399]
[1745750885509,0.7639134,94091.0,94090.0,0.03359399]
[1745750894117,0.4031134,94091.0,94090.0,0.03359399]
[1745750894322,0.7579134,94091.0,94090.0,0.03259399]
[1745750894518,0.7639134,94091.0,94090.0,0.03359399]
[1745750896225,0.7639134,94091.0,94080.0,0.06412]
[1745750896226,0.5514,94091.0,94080.0,0.06412]
[1745750896527,0.5733314,94083.0,94082.0,0.0301]
[1745750897028,0.69875968,94083.0,94048.0,0.3608]
[1745750897219,0.5734037,94051.0,94036.0,0.3608]
[1745750897414,0.5734037,94051.0,94050.0,0.1701635]
[1745750897615,0.5734037,94051.0,94050.0,0.19436062]
[1745750897926,0.91136338,94051.0,94050.0,0.16200185]
[1745750898127,1.09396338,94051.0,94050.0,0.16400185]
[1745750898314,1.09396338,94051.0,94050.0,0.18834635]
[1745750898622,1.09396338,94051.0,94050.0,0.19034635]
[1745750898825,1.09396338,94051.0,94050.0,0.19234635]
[1745750899023,1.45476338,94051.0,94050.0,0.19234635]
[1745750899225,1.33476338,94051.0,94050.0,0.16800185]
[1745750900125,1.33476338,94051.0,94050.0,0.006]
[1745750901225,0.9968037,94051.0,94050.0,0.006]
[1745750902126,0.053158,94040.0,94036.0,0.06412]
[1745750902326,0.2126354,94038.0,94037.0,0.2126309]
[1745750902529,0.5734354,94038.0,94037.0,0.2126309]
[1745750902826,0.2126354,94037.0,94036.0,0.06412]
[1745750903227,0.2767354,94037.0,94036.0,0.06412]
[1745750903421,0.2767354,94037.0,94036.0,0.06512]
[1745750903925,0.2767354,94037.0,94036.0,0.08975424]
[1745750904126,0.6395354,94037.0,94036.0,0.20975424]
[1745750904522,0.6405354,94037.0,94036.0,0.22175424]
[1745750905228,0.6405354,94037.0,94036.0,0.10175424]
[1745750906130,0.6405354,94037.0,94036.0,0.22175424]
[1745750906332,0.6405354,94037.0,94036.0,0.23955424]
[1745750907624,0.6405354,94037.0,94036.0,0.45219194]
[1745750908026,0.6385354,94037.0,94036.0,0.44519194]
[1745750909419,0.6375354,94037.0,94036.0,0.44319194]
[1745750909628,0.6385354,94037.0,94036.0,0.44619194]
[1745750910936,0.6385354,94037.0,94036.0,0.38207194]
[1745750911233,0.6385354,94037.0,94036.0,0.26207194]
[1745750911937,0.6385354,94037.0,94036.0,0.03163424]
[1745750913138,0.97649508,94037.0,94036.0,0.03163424]
[1745750914138,0.97649508,94037.0,94036.0,0.15163424]
[1745750915239,0.97649508,94037.0,94036.0,0.03163424]
[1745750915841,0.6385354,94037.0,94036.0,0.03163424]
[1745750916044,0.97649508,94037.0,94036.0,0.03163424]
[1745750916543,0.61569508,94037.0,94036.0,0.03163424]
[1745750916736,0.97649508,94037.0,94036.0,0.03163424]
[1745750918044,0.6385354,94037.0,94036.0,0.03163424]
[1745750919139,0.6385354,94037.0,94036.0,0.15163424]